[Event "SVK-ch Open 2018"]
[Site "Banska Stiavnica"]
[Date "2018.07.15"]
[Round "9"]
[White "Petran, Peter"]
[Black "Cech, Dominik"]
[Result "1/2-1/2"]
[ECO "E63"]
[WhiteElo "2302"]
[BlackElo "2151"]
[Annotator "NA"]
[PlyCount "96"]
[EventDate "2018.07.07"]
[EventType "swiss"]
[EventCountry "SVK"]
[SourceTitle "playchess.com"]
[Source "ChessBase"]
[SourceQuality "1"]
[TimeControl "40/5400+30:1800+30"]

1. d4 {[%emt 0:00:34]} Nf6 {[%emt 0:02:32]} 2. c4 {[%emt 0:00:09]} g6 {[%emt 0:00:45]} 3. g3 {[%emt 0:00:13]} Bg7 {[%emt 0:00:46]} 4. Bg2 {[%emt 0:00:05]} O-O {[%emt 0:01:03]} 5. Nc3 {[%emt 0:00:05]} d6 {[%emt 0:00:48]} 6. Nf3 {[%emt 0:00:14]} Nc6 {[%emt 0:02:13]} 7. O-O {[%emt 0:00:11]} a6 {[%emt 0:00:20]} 8. Qc2 {[%emt 0:01:59]} Rb8 {[%emt 0:12:14]} 9. Rd1 {[%emt 0:04:47]} Bd7 {[%emt 0:04:55]} 10. e4 {[%emt 0:02:39]} e5 {[%emt 0:03:19]} 11. d5 {[%emt 0:01:13]} Na5 {[%emt 0:04:26]} 12. Ne2 {[%emt 0:04:41]} b5 {[%emt 0:11:47]} 13. c5 {[%emt 0:00:51]} dxc5 {[%emt 0:01:35]} 14. Nxe5 {[%emt 0:00:52]} Qe7 {[%emt 0:04:28]} 15. Nxd7 {[%emt 0:05:00]} Nxd7 {[%emt 0:05:49]} 16. f4 {[%emt 0:00:12]} c4 {[%emt 0:01:31]} 17. e5 {[%emt 0:04:58]} Qc5+ {[%emt 0:06:12]} 18. Kh1 {[%emt 0:00:40]} Nxe5 {[%emt 0:12:17]} 19. fxe5 {[%emt 0:00:27]} Bxe5 {[%emt 0:00:13]} 20. Bf4 {[%emt 0:05:39]} Rfe8 {[%emt 0:03:35]} 21. Bxe5 {[%emt 0:03:07]} Rxe5 {[%emt 0:00:20]} 22. Nf4 {[%emt 0:02:08]} Qd6 {[%emt 0:04:47]} 23. h4 {[%emt 0:03:59]} Rbe8 {[%emt 0:00:56]} 24. Kh2 {[%emt 0:00:48]} h6 {[%emt 0:06:31]} 25. Qf2 {[%emt 0:07:11]} b4 {[%emt 0:06:09]} 26. Rf1 {[%emt 0:01:09]} Qe7 {[%emt 0:01:21]} 27. Rad1 {[%emt 0:02:43]} Qf6 {[%emt 0:01:26]} 28. Qd2 {[%emt 0:04:57]} Qd6 {[%emt 0:00:22]} 29. Qf2 {[%emt 0:01:38]} R8e7 {[%emt 0:01:01]} 30. Rd2 {[%emt 0:06:20]} g5 {[%emt 0:00:35]} 31. hxg5 {[%emt 0:02:18]} hxg5 {[%emt 0:00:21]} 32. Ne2 {[%emt 0:01:25]} c3 {[%emt 0:00:31]} 33. Rc2 {[%emt 0:04:11]} Nc4 {[%emt 0:00:27]} 34. Rfc1 {[%emt 0:20:11]} Ne3 {[%emt 0:00:24]} 35. Kg1 {[%emt 0:00:20]} Nxc2 {[%emt 0:00:24]} 36. Rxc2 {[%emt 0:00:03]} Qg6 {[%emt 0:00:50]} 37. Nd4 {[%emt 0:00:24]} Re1+ {[%emt 0:00:27]} 38. Bf1 {[%emt 0:00:07]} Qd3 {[%emt 0:00:25]} 39. bxc3 {[%emt 0:01:22]} bxc3 {[%emt 0:00:37]} 40. Nf5 {[%emt 0:01:43]} Rxf1+ {[%emt 0:00:38]} 41. Qxf1 {[%emt 0:30:06]} Qxc2 {[%emt 0:00:54]} 42. Nxe7+ {[%emt 0:00:00]} Kf8 {[%emt 0:07:13]} 43. Qf6 {[%emt 0:00:00]} Qd1+ {[%emt 0:11:24]} 44. Kf2 {[%emt 0:00:00]} Qd2+ {[%emt 0:00:26]} 45. Kg1 {[%emt 0:00:00]} Qe1+ {[%emt 0:01:16]} 46. Kh2 {[%emt 0:00:00]} Qe2+ {[%emt 0:00:10]} 47. Kg1 {[%emt 0:00:00]} Qe1+ {[%emt 0:09:45]} 48. Kh2 {[%emt 0:00:00]} Qe2+ {[%emt 0:01:33]} 1/2-1/2

[Event "SVK-ch Open 2018"]
[Site "Banska Stiavnica"]
[Date "2018.07.15"]
[Round "9"]
[White "Stockova, Zuzana"]
[Black "Demeter, Peter"]
[Result "1-0"]
[ECO "B77"]
[WhiteElo "2301"]
[BlackElo "2146"]
[Annotator "NA"]
[PlyCount "105"]
[EventDate "2018.07.07"]
[EventType "swiss"]
[EventCountry "SVK"]
[SourceTitle "playchess.com"]
[Source "ChessBase"]
[SourceQuality "1"]
[TimeControl "40/5400+30:1800+30"]

1. e4 {[%emt 0:00:00]} c5 {[%emt 0:00:00]} 2. Nf3 {[%emt 0:00:00]} d6 {[%emt 0:00:00]} 3. d4 {[%emt 0:00:20]} cxd4 {[%emt 0:00:00]} 4. Nxd4 {[%emt 0:00:30]} Nf6 {[%emt 0:00:00]} 5. Nc3 {[%emt 0:00:03]} g6 {[%emt 0:00:00]} 6. Be3 {[%emt 0:00:56]} Bg7 {[%emt 0:00:05]} 7. f3 {[%emt 0:00:07]} O-O {[%emt 0:00:05]} 8. Bc4 {[%emt 0:02:25]} Nc6 {[%emt 0:00:07]} 9. Qd2 {[%emt 0:02:40]} Bd7 {[%emt 0:00:18]} 10. Bb3 {[%emt 0:00:52]} Qa5 {[%emt 0:00:19]} 11. O-O-O {[%emt 0:02:44]} Rfc8 {[%emt 0:00:17]} 12. Kb1 {[%emt 0:07:17]} Ne5 {[%emt 0:00:42]} 13. h4 {[%emt 0:02:20]} Nc4 {[%emt 0:02:10]} 14. Bxc4 {[%emt 0:04:07]} Rxc4 {[%emt 0:00:19]} 15. h5 {[%emt 0:04:40]} Rac8 {[%emt 0:09:19]} 16. hxg6 {[%emt 0:05:05]} fxg6 {[%emt 0:00:35]} 17. Nb3 {[%emt 0:01:17]} Qe5 {[%emt 0:00:55]} 18. Bd4 {[%emt 0:10:31]} Qe6 {[%emt 0:01:47]} 19. g4 {[%emt 0:04:57]} Qf7 {[%emt 0:04:27]} 20. Qh2 {[%emt 0:06:51]} b5 {[%emt 0:06:48]} 21. Rd2 {[%emt 0:02:39]} e5 {[%emt 0:09:40]} 22. Be3 {[%emt 0:04:17]} Rxc3 {[%emt 0:08:58]} 23. bxc3 {[%emt 0:00:47]} Rxc3 {[%emt 0:00:07]} 24. Bg5 {[%emt 0:02:51]} Rxf3 {[%emt 0:04:51]} 25. Bxf6 {[%emt 0:03:27]} Bxf6 {[%emt 0:03:21]} 26. Rxd6 {[%emt 0:02:24]} Bg5 {[%emt 0:01:59]} 27. Rhd1 {[%emt 0:03:19]} Bxg4 {[%emt 0:05:36]} 28. Qxe5 {[%emt 0:05:57]} Be7 {[%emt 0:08:20]} 29. Rd8+ {[%emt 0:02:34]} Bf8 {[%emt 0:00:07]} 30. Qxb5 {[%emt 0:03:18]} Rf2 {[%emt 0:00:43]} 31. R1d2 {[%emt 0:05:51]} Rxd2 {[%emt 0:02:28]} 32. Nxd2 {[%emt 0:02:45]} h5 {[%emt 0:01:26]} 33. Rb8 {[%emt 0:02:43]} Be6 {[%emt 0:01:13]} 34. Rb7 {[%emt 0:02:55]} Qf4 {[%emt 0:00:41]} 35. Qe8 {[%emt 0:01:27]} Bf7 {[%emt 0:03:17]} 36. Qd7 {[%emt 0:00:26]} Qf2 {[%emt 0:02:23]} 37. c3 {[%emt 0:00:44]} Bg7 {[%emt 0:02:04]} 38. Kc2 {[%emt 0:00:40]} Qf6 {[%emt 0:00:34]} 39. Qc7 {[%emt 0:01:48]} Bxa2 {[%emt 0:01:06]} 40. Rxa7 {[%emt 0:00:31]} Be6 {[%emt 0:00:18]} 41. Rb7 {[%emt 0:30:45]} h4 {[%emt 0:34:32]} 42. Rb1 {[%emt 0:00:00]} g5 {[%emt 0:00:00]} 43. Rf1 {[%emt 0:00:00]} Qg6 {[%emt 0:00:00]} 44. Kb2 {[%emt 0:00:00]} Qe8 {[%emt 0:00:00]} 45. Qc5 {[%emt 0:00:00]} g4 {[%emt 0:00:00]} 46. Ra1 {[%emt 0:00:00]} h3 {[%emt 0:00:00]} 47. Qc7 {[%emt 0:00:00]} Qb5+ {[%emt 0:00:00]} 48. Kc2 {[%emt 0:00:00]} Qe5 {[%emt 0:00:00]} 49. Qd8+ {[%emt 0:00:09]} Kh7 {[%emt 0:00:00]} 50. Ra5 {[%emt 0:00:15]} Qxc3+ {[%emt 0:00:00]} 51. Kd1 {[%emt 0:00:01]} Qf6 {[%emt 0:00:00]} 52. Rh5+ {[%emt 0:01:37]} Bh6 53. Qxf6 1-0

[Event "SVK-ch Open 2018"]
[Site "Banska Stiavnica"]
[Date "2018.07.15"]
[Round "9"]
[White "Chmiel, Marcin"]
[Black "Ferkova, Dominika"]
[Result "1/2-1/2"]
[ECO "B19"]
[WhiteElo "2249"]
[BlackElo "2053"]
[Annotator "NA"]
[PlyCount "71"]
[EventDate "2018.07.07"]
[EventType "swiss"]
[EventCountry "SVK"]
[SourceTitle "playchess.com"]
[Source "ChessBase"]
[SourceQuality "1"]
[TimeControl "40/5400+30:1800+30"]

1. e4 {[%emt 0:00:00]} c6 {[%emt 0:01:39]} 2. d4 {[%emt 0:00:00]} d5 {[%emt 0:00:09]} 3. Nd2 {[%emt 0:00:00]} dxe4 {[%emt 0:00:04]} 4. Nxe4 {[%emt 0:00:06]} Bf5 {[%emt 0:00:04]} 5. Ng3 {[%emt 0:00:14]} Bg6 {[%emt 0:00:06]} 6. h4 {[%emt 0:00:10]} h6 {[%emt 0:00:06]} 7. Nf3 {[%emt 0:00:08]} Nd7 {[%emt 0:00:08]} 8. h5 {[%emt 0:00:08]} Bh7 {[%emt 0:00:03]} 9. Bd3 {[%emt 0:00:11]} Bxd3 {[%emt 0:00:06]} 10. Qxd3 {[%emt 0:00:10]} e6 {[%emt 0:00:04]} 11. Bd2 {[%emt 0:00:12]} Ngf6 {[%emt 0:00:16]} 12. O-O-O {[%emt 0:00:12]} Be7 {[%emt 0:01:20]} 13. Ne4 {[%emt 0:00:33]} Nxe4 {[%emt 0:00:12]} 14. Qxe4 {[%emt 0:00:09]} Nf6 {[%emt 0:00:04]} 15. Qe2 {[%emt 0:00:13]} Qd5 {[%emt 0:01:56]} 16. c4 {[%emt 0:00:17]} Qe4 {[%emt 0:00:07]} 17. Qxe4 {[%emt 0:00:12]} Nxe4 {[%emt 0:00:04]} 18. Be3 {[%emt 0:00:12]} O-O {[%emt 0:04:35]} 19. Ne5 {[%emt 0:00:26]} Rfd8 {[%emt 0:05:16]} 20. g4 {[%emt 0:00:56]} c5 {[%emt 0:05:24]} 21. dxc5 {[%emt 0:03:19]} Bxc5 {[%emt 0:04:33]} 22. Bxc5 {[%emt 0:00:24]} Nxc5 {[%emt 0:00:07]} 23. Kc2 {[%emt 0:04:41]} Kf8 {[%emt 0:17:25]} 24. b4 {[%emt 0:02:57]} Ne4 {[%emt 0:04:06]} 25. f3 {[%emt 0:01:00]} Nf6 {[%emt 0:01:27]} 26. Rxd8+ {[%emt 0:14:20]} Rxd8 {[%emt 0:00:14]} 27. Rd1 {[%emt 0:00:21]} Rxd1 {[%emt 0:00:28]} 28. Kxd1 {[%emt 0:00:02]} Ke7 {[%emt 0:00:39]} 29. Kd2 {[%emt 0:00:17]} Nd7 {[%emt 0:04:14]} 30. f4 {[%emt 0:10:17]} Nxe5 {[%emt 0:08:54]} 31. fxe5 {[%emt 0:00:02]} f6 {[%emt 0:00:27]} 32. Ke3 {[%emt 0:02:13]} Kd7 {[%emt 0:00:18]} 33. Kd4 {[%emt 0:03:23]} b6 {[%emt 0:12:13]} 34. a4 {[%emt 0:09:01]} a6 {[%emt 0:00:45]} 35. b5 {[%emt 0:15:49]} axb5 {[%emt 0:00:34]} 36. axb5 {[%emt 0:02:08]} 1/2-1/2

[Event "SVK-ch Open 2018"]
[Site "Banska Stiavnica"]
[Date "2018.07.15"]
[Round "9"]
[White "Ruckschloss, Karol"]
[Black "Talla, Vladimir"]
[Result "0-1"]
[ECO "A22"]
[WhiteElo "2245"]
[BlackElo "2402"]
[Annotator "NA"]
[PlyCount "70"]
[EventDate "2018.07.07"]
[EventType "swiss"]
[EventCountry "SVK"]
[SourceTitle "playchess.com"]
[Source "ChessBase"]
[SourceQuality "1"]
[TimeControl "40/5400+30:1800+30"]

1. c4 {[%emt 0:00:00]} e5 {[%emt 0:07:09]} 2. Nc3 {[%emt 0:00:00]} Nf6 {[%emt 0:00:22]} 3. g3 {[%emt 0:02:33]} d5 {[%emt 0:00:05]} 4. cxd5 {[%emt 0:00:08]} Nxd5 {[%emt 0:00:07]} 5. Bg2 {[%emt 0:00:03]} Nb6 {[%emt 0:00:04]} 6. Nf3 {[%emt 0:00:15]} Nc6 {[%emt 0:00:08]} 7. b3 {[%emt 0:00:56]} Be7 {[%emt 0:00:27]} 8. Bb2 {[%emt 0:00:10]} O-O {[%emt 0:00:08]} 9. O-O {[%emt 0:00:11]} Bg4 {[%emt 0:05:32]} 10. Rc1 {[%emt 0:05:43]} Qd7 {[%emt 0:01:11]} 11. Ne4 {[%emt 0:05:52]} f6 {[%emt 0:19:12]} 12. d3 {[%emt 0:10:09]} a5 {[%emt 0:06:14]} 13. Qc2 {[%emt 0:06:38]} a4 {[%emt 0:02:32]} 14. Nc5 {[%emt 0:02:06]} Bxc5 {[%emt 0:00:14]} 15. Qxc5 {[%emt 0:00:03]} axb3 {[%emt 0:01:45]} 16. axb3 {[%emt 0:00:02]} Ra2 {[%emt 0:01:12]} 17. Rc2 {[%emt 0:03:27]} Qd6 {[%emt 0:06:46]} 18. Rb1 {[%emt 0:04:15]} Rfa8 {[%emt 0:04:55]} 19. h3 {[%emt 0:02:12]} Bh5 {[%emt 0:07:14]} 20. g4 {[%emt 0:04:48]} Bf7 {[%emt 0:08:38]} 21. Nd2 {[%emt 0:01:53]} Nd5 {[%emt 0:01:55]} 22. Ne4 {[%emt 0:03:45]} Qd8 {[%emt 0:05:00]} 23. Rd2 {[%emt 0:07:47]} Nf4 {[%emt 0:01:51]} 24. Bf1 {[%emt 0:04:05]} Bxb3 {[%emt 0:06:11]} 25. Bc3 {[%emt 0:18:01]} Ne6 {[%emt 0:03:17]} 26. Qe3 {[%emt 0:00:36]} Ncd4 {[%emt 0:00:22]} 27. Bxd4 {[%emt 0:03:30]} exd4 {[%emt 0:03:23]} 28. Qf3 {[%emt 0:00:25]} Bd5 {[%emt 0:00:24]} 29. Rxa2 {[%emt 0:00:11]} Rxa2 {[%emt 0:00:06]} 30. Qf5 {[%emt 0:01:46]} b6 {[%emt 0:01:16]} 31. Bg2 {[%emt 0:00:24]} Ra5 {[%emt 0:02:32]} 32. h4 {[%emt 0:01:03]} Ba2 {[%emt 0:01:43]} 33. Rb5 {[%emt 0:00:18]} g6 {[%emt 0:02:10]} 34. Nxf6+ {[%emt 0:00:54]} Kf7 {[%emt 0:00:06]} 35. Qe5 {[%emt 0:00:50]} Rxb5 {[%emt 0:00:05]} 0-1

[Event "SVK-ch Open 2018"]
[Site "Banska Stiavnica"]
[Date "2018.07.15"]
[Round "9"]
[White "Seres, Bela"]
[Black "Chrenko, Kristian"]
[Result "1-0"]
[ECO "A01"]
[WhiteElo "2212"]
[BlackElo "1992"]
[Annotator "NA"]
[PlyCount "113"]
[EventDate "2018.07.07"]
[EventType "swiss"]
[EventCountry "SVK"]
[SourceTitle "playchess.com"]
[Source "ChessBase"]
[SourceQuality "1"]
[TimeControl "40/5400+30:1800+30"]

1. b3 {[%emt 0:00:00]} d5 {[%emt 0:00:15]} 2. Bb2 {[%emt 0:00:00]} Nf6 {[%emt 0:00:53]} 3. e3 {[%emt 0:00:05]} e6 {[%emt 0:00:42]} 4. f4 {[%emt 0:00:30]} c5 {[%emt 0:00:44]} 5. Nf3 {[%emt 0:00:07]} Nc6 {[%emt 0:03:08]} 6. Bb5 {[%emt 0:01:16]} Bd7 {[%emt 0:02:17]} 7. O-O {[%emt 0:01:24]} Qc7 {[%emt 0:11:19]} 8. a3 {[%emt 0:05:29]} Bd6 {[%emt 0:09:15]} 9. Nc3 {[%emt 0:06:06]} a6 {[%emt 0:05:14]} 10. Bxc6 {[%emt 0:04:43]} Bxc6 {[%emt 0:00:41]} 11. Ne2 {[%emt 0:00:16]} Qe7 {[%emt 0:04:33]} 12. Ne5 {[%emt 0:02:28]} h5 {[%emt 0:09:42]} 13. Nc1 {[%emt 0:09:47]} O-O-O {[%emt 0:03:01]} 14. Nxc6 {[%emt 0:04:45]} bxc6 {[%emt 0:00:01]} 15. Nd3 {[%emt 0:01:37]} Kb7 {[%emt 0:06:06]} 16. c4 {[%emt 0:02:30]} Bc7 {[%emt 0:01:57]} 17. b4 {[%emt 0:00:34]} Ne4 {[%emt 0:04:39]} 18. Qc2 {[%emt 0:08:04]} Ka7 {[%emt 0:05:49]} 19. Nxc5 {[%emt 0:04:44]} Nxc5 {[%emt 0:00:27]} 20. bxc5 {[%emt 0:00:02]} f6 {[%emt 0:02:59]} 21. cxd5 {[%emt 0:05:27]} exd5 {[%emt 0:00:59]} 22. Bd4 {[%emt 0:06:51]} Rb8 {[%emt 0:02:43]} 23. Rab1 {[%emt 0:02:57]} Qd7 {[%emt 0:10:19]} 24. Rb4 {[%emt 0:02:16]} Rxb4 {[%emt 0:04:15]} 25. axb4 {[%emt 0:00:23]} Rb8 {[%emt 0:00:07]} 26. Bc3 {[%emt 0:03:48]} f5 {[%emt 0:02:34]} 27. Ra1 {[%emt 0:00:23]} Rb5 {[%emt 0:02:44]} 28. Qa4 {[%emt 0:03:08]} a5 {[%emt 0:02:10]} 29. bxa5 {[%emt 0:00:20]} Ka6 {[%emt 0:02:05]} 30. Qd4 {[%emt 0:05:14]} g6 {[%emt 0:00:30]} 31. Qh8 {[%emt 0:03:05]} Rb8 {[%emt 0:02:45]} 32. Qf6 {[%emt 0:01:48]} Qe8 {[%emt 0:00:25]} 33. Be5 {[%emt 0:01:30]} Bd8 {[%emt 0:00:29]} 34. Qd6 {[%emt 0:02:19]} Rb7 {[%emt 0:00:30]} 35. Bc3 {[%emt 0:04:02]} Bc7 {[%emt 0:00:31]} 36. Qf6 {[%emt 0:00:24]} Bd8 {[%emt 0:00:31]} 37. Qd4 {[%emt 0:00:14]} Rb5 {[%emt 0:00:38]} 38. Qd3 {[%emt 0:03:27]} Qe4 {[%emt 0:00:16]} 39. Qe2 {[%emt 0:01:30]} Be7 {[%emt 0:00:27]} 40. Bd4 {[%emt 0:00:31]} Qe6 {[%emt 0:00:46]} 41. Rc1 {[%emt 0:32:44]} Bd8 {[%emt 0:00:50]} 42. Be5 {[%emt 0:00:00]} Qc8 {[%emt 0:01:49]} 43. Qd3 {[%emt 0:00:00]} Ka7 {[%emt 0:01:40]} 44. a6 {[%emt 0:00:00]} Qxa6 {[%emt 0:04:33]} 45. Bc3 {[%emt 0:00:00]} Qc8 {[%emt 0:06:02]} 46. Qd4 {[%emt 0:00:00]} Qe6 {[%emt 0:02:40]} 47. Ra1+ {[%emt 0:00:00]} Kb7 {[%emt 0:01:04]} 48. Qh8 {[%emt 0:00:00]} Qe7 {[%emt 0:04:20]} 49. Be5 {[%emt 0:00:00]} Rxc5 {[%emt 0:01:17]} 50. Qg8 {[%emt 0:00:00]} g5 {[%emt 0:05:10]} 51. Bd4 {[%emt 0:00:00]} Ra5 {[%emt 0:00:39]} 52. Rb1+ {[%emt 0:00:00]} Kc8 {[%emt 0:01:55]} 53. fxg5 {[%emt 0:00:00]} Rb5 {[%emt 0:03:15]} 54. Rxb5 {[%emt 0:00:00]} cxb5 {[%emt 0:00:02]} 55. Qxd5 {[%emt 0:00:00]} Qxg5 {[%emt 0:00:31]} 56. Qxb5 {[%emt 0:00:00]} h4 {[%emt 0:01:34]} 57. Be5 {[%emt 0:00:00]} 1-0

[Event "SVK-ch Open 2018"]
[Site "Banska Stiavnica"]
[Date "2018.07.15"]
[Round "9"]
[White "Kanakova, Natalie"]
[Black "Bakalar, Jan"]
[Result "1-0"]
[ECO "A30"]
[WhiteElo "2206"]
[BlackElo "1998"]
[Annotator "NA"]
[PlyCount "81"]
[EventDate "2018.07.07"]
[EventType "swiss"]
[EventCountry "SVK"]
[SourceTitle "playchess.com"]
[Source "ChessBase"]
[SourceQuality "1"]
[TimeControl "40/5400+30:1800+30"]

1. c4 {[%emt 0:00:00]} Nf6 {[%emt 0:00:54]} 2. Nc3 {[%emt 0:00:50]} e6 {[%emt 0:00:09]} 3. Nf3 {[%emt 0:00:33]} c5 {[%emt 0:01:13]} 4. g3 {[%emt 0:07:02]} b6 {[%emt 0:04:24]} 5. Bg2 {[%emt 0:00:34]} Bb7 {[%emt 0:00:06]} 6. O-O {[%emt 0:00:31]} Be7 {[%emt 0:00:52]} 7. b3 {[%emt 0:03:17]} O-O {[%emt 0:01:53]} 8. Bb2 {[%emt 0:00:09]} a6 {[%emt 0:01:32]} 9. e3 {[%emt 0:04:38]} Qc7 {[%emt 0:02:49]} 10. Rc1 {[%emt 0:01:22]} d6 {[%emt 0:00:57]} 11. d4 {[%emt 0:01:02]} Nbd7 {[%emt 0:01:16]} 12. Re1 {[%emt 0:08:02]} Rac8 {[%emt 0:03:38]} 13. h3 {[%emt 0:08:44]} Qb8 {[%emt 0:00:46]} 14. d5 {[%emt 0:01:30]} e5 {[%emt 0:01:32]} 15. e4 {[%emt 0:01:23]} b5 {[%emt 0:06:07]} 16. cxb5 {[%emt 0:02:41]} axb5 {[%emt 0:00:19]} 17. Nxb5 {[%emt 0:01:30]} Ba6 {[%emt 0:00:26]} 18. Na3 {[%emt 0:03:12]} c4 {[%emt 0:00:38]} 19. Bf1 {[%emt 0:03:03]} Nc5 {[%emt 0:01:26]} 20. Bxc4 {[%emt 0:01:46]} Ncxe4 {[%emt 0:02:28]} 21. Bxa6 {[%emt 0:05:05]} Qa7 {[%emt 0:01:21]} 22. Qe2 {[%emt 0:00:57]} Nxg3 {[%emt 0:01:28]} 23. Qe3 {[%emt 0:04:00]} Qxa6 {[%emt 0:05:30]} 24. fxg3 {[%emt 0:00:06]} Nxd5 {[%emt 0:00:22]} 25. Qe2 {[%emt 0:02:11]} Qa7+ {[%emt 0:01:21]} 26. Kh1 {[%emt 0:03:10]} Ra8 {[%emt 0:05:02]} 27. Rc4 {[%emt 0:02:58]} Qd7 {[%emt 0:00:33]} 28. Kh2 {[%emt 0:00:48]} f5 {[%emt 0:01:28]} 29. Qd2 {[%emt 0:05:11]} Nb6 {[%emt 0:04:56]} 30. Rc2 {[%emt 0:02:04]} Qb7 {[%emt 0:01:33]} 31. Qe2 {[%emt 0:04:45]} d5 {[%emt 0:09:19]} 32. Qxe5 {[%emt 0:03:25]} Bf6 {[%emt 0:02:33]} 33. Qe6+ {[%emt 0:00:06]} Kh8 {[%emt 0:00:05]} 34. Bxf6 {[%emt 0:01:14]} Rxf6 {[%emt 0:00:28]} 35. Qe8+ {[%emt 0:01:13]} Rf8 {[%emt 0:00:20]} 36. Qc6 {[%emt 0:00:56]} Qxc6 {[%emt 0:01:56]} 37. Rxc6 {[%emt 0:00:05]} Nd7 {[%emt 0:00:11]} 38. Nc2 {[%emt 0:01:11]} Rxa2 {[%emt 0:00:12]} 39. Nfd4 {[%emt 0:00:50]} f4 {[%emt 0:01:09]} 40. gxf4 {[%emt 0:00:19]} Nf6 {[%emt 0:00:58]} 41. Ra1 {[%emt 0:31:27]} 1-0

[Event "SVK-ch Open 2018"]
[Site "Banska Stiavnica"]
[Date "2018.07.15"]
[Round "9"]
[White "Bombek, Peter"]
[Black "Franzen, Jozef"]
[Result "1/2-1/2"]
[ECO "A49"]
[WhiteElo "2201"]
[BlackElo "2256"]
[Annotator "NA"]
[PlyCount "82"]
[EventDate "2018.07.07"]
[EventType "swiss"]
[EventCountry "SVK"]
[SourceTitle "playchess.com"]
[Source "ChessBase"]
[SourceQuality "1"]
[TimeControl "40/5400+30:1800+30"]

1. d4 {[%emt 0:00:02]} Nf6 {[%emt 0:00:00]} 2. Nf3 {[%emt 0:00:08]} g6 {[%emt 0:00:00]} 3. g3 {[%emt 0:00:10]} Bg7 {[%emt 0:00:00]} 4. Bg2 {[%emt 0:00:07]} O-O {[%emt 0:00:03]} 5. O-O {[%emt 0:00:05]} d6 {[%emt 0:00:05]} 6. a4 {[%emt 0:00:09]} Nbd7 {[%emt 0:03:13]} 7. a5 {[%emt 0:00:31]} c6 {[%emt 0:00:46]} 8. Nc3 {[%emt 0:01:47]} Qc7 {[%emt 0:00:31]} 9. b3 {[%emt 0:03:49]} Re8 {[%emt 0:00:35]} 10. Bb2 {[%emt 0:00:57]} e5 {[%emt 0:02:13]} 11. dxe5 {[%emt 0:02:05]} dxe5 {[%emt 0:00:09]} 12. Qc1 {[%emt 0:07:43]} Nc5 {[%emt 0:03:42]} 13. Qe3 {[%emt 0:02:07]} Nfd7 {[%emt 0:01:24]} 14. Rfd1 {[%emt 0:02:22]} f5 {[%emt 0:05:46]} 15. Ba3 {[%emt 0:05:15]} b6 {[%emt 0:05:42]} 16. Bxc5 {[%emt 0:14:00]} Nxc5 {[%emt 0:04:48]} 17. axb6 {[%emt 0:00:15]} Qxb6 {[%emt 0:00:04]} 18. b4 {[%emt 0:06:07]} Nd7 {[%emt 0:11:04]} 19. Qxb6 {[%emt 0:01:34]} Nxb6 {[%emt 0:00:04]} 20. Na4 {[%emt 0:04:06]} Ba6 {[%emt 0:13:04]} 21. e4 {[%emt 0:03:21]} Nxa4 {[%emt 0:13:28]} 22. Rxa4 {[%emt 0:01:09]} Bb5 {[%emt 0:00:27]} 23. Raa1 {[%emt 0:06:04]} Rad8 {[%emt 0:00:50]} 24. Bf1 {[%emt 0:01:28]} fxe4 {[%emt 0:04:36]} 25. Ng5 {[%emt 0:01:19]} Bxf1 {[%emt 0:01:36]} 26. Kxf1 {[%emt 0:00:33]} e3 {[%emt 0:00:27]} 27. Rxd8 {[%emt 0:08:38]} Rxd8 {[%emt 0:00:02]} 28. fxe3 {[%emt 0:02:29]} Bh6 {[%emt 0:01:17]} 29. h4 {[%emt 0:03:24]} Bxg5 {[%emt 0:00:28]} 30. hxg5 {[%emt 0:00:00]} Rd2 {[%emt 0:00:53]} 31. Rxa7 {[%emt 0:03:38]} Rxc2 {[%emt 0:00:11]} 32. Rc7 {[%emt 0:02:01]} Rc4 {[%emt 0:00:59]} 33. Kf2 {[%emt 0:00:19]} Rxb4 {[%emt 0:00:13]} 34. Rxc6 {[%emt 0:00:11]} Rg4 {[%emt 0:00:09]} 35. Rc8+ {[%emt 0:00:08]} Kf7 {[%emt 0:00:27]} 36. Rc7+ {[%emt 0:00:20]} Ke6 {[%emt 0:00:14]} 37. Rxh7 {[%emt 0:02:45]} Rxg5 {[%emt 0:01:06]} 38. e4 {[%emt 0:02:06]} Rh5 {[%emt 0:00:49]} 39. Ra7 {[%emt 0:01:57]} Rh1 {[%emt 0:01:18]} 40. Ra6+ {[%emt 0:00:16]} Kf7 {[%emt 0:00:08]} 41. Kf3 {[%emt 0:31:23]} Rf1+ {[%emt 0:30:20]} 1/2-1/2

[Event "SVK-ch Open 2018"]
[Site "Banska Stiavnica"]
[Date "2018.07.15"]
[Round "9"]
[White "Kostolansky, Sebastian Lukas"]
[Black "Budinsky, Jozef"]
[Result "1-0"]
[ECO "C77"]
[WhiteElo "2197"]
[BlackElo "1931"]
[Annotator "NA"]
[PlyCount "47"]
[EventDate "2018.07.07"]
[EventType "swiss"]
[EventCountry "SVK"]
[SourceTitle "playchess.com"]
[Source "ChessBase"]
[SourceQuality "1"]
[TimeControl "40/5400+30:1800+30"]

1. e4 {[%emt 0:00:00]} e5 {[%emt 0:00:11]} 2. Nf3 {[%emt 0:00:00]} Nc6 {[%emt 0:00:10]} 3. Bb5 {[%emt 0:00:00]} a6 {[%emt 0:01:12]} 4. Ba4 {[%emt 0:00:00]} Nf6 {[%emt 0:01:19]} 5. d3 {[%emt 0:00:07]} Be7 {[%emt 0:01:15]} 6. Bxc6 {[%emt 0:05:14]} dxc6 {[%emt 0:02:09]} 7. Nxe5 {[%emt 0:00:16]} O-O {[%emt 0:03:21]} 8. O-O {[%emt 0:04:45]} Be6 {[%emt 0:00:20]} 9. Nd2 {[%emt 0:12:18]} Ne8 {[%emt 0:10:31]} 10. f4 {[%emt 0:06:22]} f6 {[%emt 0:00:42]} 11. Nef3 {[%emt 0:02:26]} c5 {[%emt 0:00:57]} 12. Qe2 {[%emt 0:02:17]} c6 {[%emt 0:04:11]} 13. b3 {[%emt 0:07:43]} Nc7 {[%emt 0:01:44]} 14. Bb2 {[%emt 0:02:50]} Re8 {[%emt 0:12:07]} 15. Rae1 {[%emt 0:05:59]} Bf8 {[%emt 0:06:08]} 16. Qf2 {[%emt 0:02:10]} Kh8 {[%emt 0:08:22]} 17. f5 {[%emt 0:02:17]} Bd7 {[%emt 0:04:07]} 18. e5 {[%emt 0:03:13]} Nd5 {[%emt 0:06:10]} 19. exf6 {[%emt 0:09:19]} Nxf6 {[%emt 0:03:48]} 20. Ng5 {[%emt 0:05:51]} Kg8 {[%emt 0:00:34]} 21. Nde4 {[%emt 0:04:25]} Nxe4 {[%emt 0:03:04]} 22. Nxe4 {[%emt 0:00:08]} Kh8 {[%emt 0:06:20]} 23. f6 {[%emt 0:00:34]} Qc7 {[%emt 0:07:20]} 24. fxg7+ {[%emt 0:00:29]} 1-0